bitfinex/quotes_SOLUSD_20220103
["timestamp","ask_amount","ask_price","bid_price","bid_amount"]
[1641249835673,8.8158,170.26,170.12,8.8156]
[1641249835869,17.8758,170.26,170.12,9.3156]
[1641249836070,8.56,170.26,170.13,22.8198]
[1641249836471,105.855,170.31,170.13,23.5798]
[1641249836472,1.53336466,170.31,170.13,23.5798]
[1641249836670,10.09336466,170.31,170.14,8.56]
[1641249836876,18.90646466,170.31,170.17,8.8131]
[1641249837172,18.90646466,170.31,170.18,23.3954]
[1641249837370,19.40646466,170.31,170.18,23.8954]
[1641249837571,17.8731,170.31,170.18,23.8954]
[1641249837875,17.3731,170.31,170.18,23.8954]
[1641249838676,8.56,170.31,170.18,23.8954]
[1641249838875,1.53336466,170.32,170.18,32.7154]
[1641249840679,8.56,170.35,170.18,32.7154]
[1641249840680,8.8115,170.34,170.21,8.811]
[1641249840879,0.26,170.32,170.21,0.5]
[1641249841078,0.26,170.35,170.21,9.06]
[1641249841283,0.26,170.35,170.22,24.6523]
[1641249841480,0.76,170.36,170.22,25.1523]
[1641249841879,0.5,170.36,170.22,25.1523]
[1641249842079,2.29336466,170.37,170.22,25.1523]
[1641249842580,8.8105,170.36,170.22,33.9628]
[1641249842983,9.5705,170.36,170.22,33.9628]
[1641249843281,9.0705,170.36,170.22,25.1523]
[1641249843480,9.5705,170.36,170.22,25.1523]
[1641249844582,9.5705,170.36,170.23,8.8101]
[1641249844781,8.8105,170.36,170.23,9.3101]
[1641249844987,9.3105,170.36,170.23,9.3101]
[1641249845185,8.8105,170.36,170.23,9.3101]
[1641249845982,9.0705,170.36,170.23,9.3101]
[1641249846881,9.5705,170.36,170.23,9.3101]
[1641249847890,9.5705,170.36,170.24,23.8284]
[1641249848283,9.5705,170.36,170.24,24.3284]
[1641249852491,9.5705,170.36,170.24,23.8284]
[1641249852891,18.1305,170.36,170.24,23.8284]
[1641249853295,9.5705,170.36,170.24,23.8284]
[1641249853897,9.5705,170.36,170.24,24.3284]
[1641249854522,9.5705,170.36,170.24,33.138]
[1641249854926,9.3105,170.36,170.24,33.138]
[1641249855327,9.3105,170.36,170.24,24.3284]
[1641249856024,9.3105,170.36,170.24,25.5915]
[1641249856225,9.5705,170.36,170.24,25.5915]
[1641249857527,9.3105,170.36,170.24,25.5915]
[1641249858727,9.5705,170.36,170.24,25.5915]
[1641249865342,9.3105,170.36,170.24,25.5915]
[1641249866465,9.5705,170.36,170.24,25.5915]
[1641249869567,9.5705,170.36,170.24,34.4018]
[1641249869768,18.1305,170.36,170.24,25.5915]
[1641249871169,17.8705,170.36,170.24,25.5915]
[1641249872474,18.1305,170.36,170.24,25.5915]
[1641249874075,18.1305,170.36,170.24,34.4018]
[1641249874476,18.1305,170.36,170.24,25.5915]
[1641249874876,17.8705,170.36,170.24,25.5915]
[1641249875577,0.5,170.36,170.24,25.5915]
[1641249875778,0.5,170.36,170.24,25.8515]
[1641249875978,2.03336466,170.39,170.25,8.56]
[1641249876376,0.5,170.39,170.25,9.32]
[1641249876577,9.3087,170.39,170.27,8.8087]
[1641249876776,8.8087,170.39,170.28,23.5356]
[1641249876977,9.5687,170.39,170.28,24.0356]
[1641249878581,9.5687,170.39,170.28,32.8436]
[1641249883086,9.0687,170.39,170.28,32.8436]
[1641249888692,17.6287,170.39,170.28,32.8436]
[1641249888894,9.0687,170.39,170.28,32.8436]
[1641249889293,0.5,170.39,170.28,41.4036]
[1641249889494,1.2845,170.41,170.28,41.6636]
[1641249889693,73.84986466,170.43,170.28,41.6636]
[1641249889894,73.84986466,170.43,170.29,1.3513]
[1641249890194,72.3165,170.43,170.33,8.8056]
[1641249890394,72.3165,170.43,170.34,22.683]
[1641249890794,72.3165,170.43,170.34,23.183]
[1641249891096,8.8058,170.44,170.34,23.183]
[1641249891295,9.3058,170.44,170.34,23.183]
[1641249891499,9.3058,170.44,170.34,24.4393]
[1641249891717,9.5658,170.44,170.34,24.4393]
[1641249894425,8.805,170.45,170.34,33.2447]
[1641249894625,1.53336466,170.46,170.34,33.5047]
[1641249894826,2.03336466,170.46,170.34,33.5047]
[1641249895625,9.3044,170.46,170.34,33.5047]
[1641249896928,9.5644,170.46,170.34,33.5047]
[1641249899034,9.5644,170.46,170.34,33.2447]
[1641249899935,9.3044,170.46,170.34,33.2447]
[1641249900336,9.3044,170.46,170.34,33.5047]
[1641249901039,9.3044,170.46,170.34,42.0647]
[1641249901239,0.5,170.46,170.34,43.49139368]
[1641249901437,74.54456466,170.48,170.34,43.49139368]
[1641249901639,73.0112,170.48,170.34,43.49139368]
[1641249902241,0.5,170.48,170.34,43.49139368]
[1641249902443,0.26,170.48,170.34,43.49139368]
[1641249902639,11.09666466,170.49,170.34,43.49139368]
[1641249903039,10.83666466,170.49,170.34,43.49139368]
[1641249904142,9.3033,170.49,170.34,43.49139368]
[1641249904642,9.5633,170.49,170.34,43.49139368]
[1641249904842,9.3033,170.49,170.34,43.49139368]
[1641249905944,9.5633,170.49,170.34,43.49139368]
[1641249906946,11.09666466,170.49,170.34,43.49139368]
[1641249907746,9.5633,170.49,170.34,43.49139368]
[1641249913077,11.09666466,170.49,170.34,43.49139368]
[1641249913275,10.59666466,170.49,170.34,43.49139368]
[1641249914379,9.0633,170.49,170.34,43.49139368]
[1641249914580,0.26,170.49,170.34,43.49139368]
[1641249914781,21.00846466,170.5,170.34,43.49139368]
[1641249916678,20.74846466,170.5,170.34,43.49139368]
[1641249916886,20.24846466,170.5,170.34,43.49139368]
[1641249917089,11.44616466,170.5,170.34,43.49139368]
[1641249917881,9.9128,170.5,170.34,43.49139368]
[1641249918081,10.1728,170.5,170.34,43.49139368]
[1641249920182,10.6728,170.5,170.34,43.49139368]
[1641249920980,10.1728,170.5,170.34,43.49139368]
[1641249921880,10.1728,170.5,170.34,43.23139368]
[1641249923985,10.1728,170.5,170.34,43.49139368]
[1641249924386,8.8028,170.49,170.34,43.49139368]
[1641249924585,9.0628,170.49,170.34,43.49139368]
[1641249924986,8.8028,170.49,170.34,43.49139368]
[1641249925187,8.8028,170.49,170.34,43.23139368]
[1641249925385,8.56,170.5,170.34,43.23139368]
[1641249925785,9.06,170.5,170.34,43.23139368]
[1641249925985,1.2225,170.49,170.34,43.23139368]
[1641249926388,1.4825,170.49,170.34,43.23139368]
[1641249926584,1.4825,170.49,170.34,43.49139368]
[1641249926785,8.8037,170.48,170.34,43.49139368]
[1641249926986,0.26,170.48,170.34,43.49139368]
[1641249927389,1.79336466,170.48,170.34,43.49139368]
[1641249927785,1.3176,170.47,170.34,43.49139368]
[1641249927986,1.5776,170.47,170.34,43.49139368]
[1641249928188,8.8048,170.45,170.34,43.23139368]
[1641249928589,9.0648,170.45,170.34,41.8047]
[1641249928789,0.26,170.45,170.34,41.8047]
[1641249928993,2.0776,170.47,170.34,40.5484]
[1641249929189,3.61096466,170.47,170.34,40.5484]
[1641249929689,8.8053,170.44,170.34,40.5484]
[1641249930088,9.0653,170.44,170.34,40.5484]
[1641249930288,9.0653,170.44,170.34,17.8654]
[1641249930489,9.0653,170.44,170.34,0.5]
[1641249930490,8.82,170.44,170.34,0.5]
[1641249930692,9.32,170.44,170.32,33.4867]
[1641249930892,8.8064,170.42,170.32,23.3573]
[1641249931193,9.0664,170.42,170.32,0.5]
[1641249931392,9.0664,170.42,170.3,1.8101]
[1641249931594,9.0664,170.42,170.3,1.3101]
[1641249931793,9.0664,170.42,170.3,1.8101]
[1641249932293,9.0664,170.42,170.3,10.6175]
[1641249933193,1.3534,170.43,170.31,24.8572]
[1641249933393,1.53336466,170.44,170.35,8.8045]
[1641249933594,1.53336466,170.44,170.35,9.0645]
[1641249933796,1.53336466,170.44,170.35,9.5645]
[1641249934597,0.26,170.44,170.35,9.5645]
[1641249935000,8.82,170.46,170.35,9.3045]
[1641249935396,8.82,170.46,170.35,9.5645]
[1641249936296,8.82,170.46,170.35,9.3045]
[1641249936496,17.6249,170.46,170.35,9.3045]
[1641249936723,8.82,170.46,170.35,9.3045]
[1641249937699,8.805,170.45,170.35,9.3045]
[1641249938096,9.065,170.45,170.35,9.3045]
[1641249939196,8.805,170.45,170.35,9.3045]
[1641249939997,8.805,170.45,170.35,8.8045]
[1641249940400,8.805,170.45,170.35,0.5]
[1641249940599,8.56,170.46,170.35,0.5]
[1641249940999,1.53336466,170.48,170.35,8.56]
[1641249941198,1.3434,170.47,170.35,8.56]
[1641249941400,1.3434,170.47,170.35,9.06]
[1641249942399,1.3434,170.47,170.36,31.7177]
[1641249942602,73.3907,170.49,170.37,8.56]
[1641249942801,73.3907,170.49,170.38,22.6551]
[1641249943004,73.3907,170.49,170.38,22.9151]
[1641249943204,73.3907,170.49,170.38,23.4151]
[1641249943602,73.3907,170.49,170.4,8.802]
[1641249943802,10.1343,170.51,170.41,24.1606]
[1641249944003,10.3943,170.51,170.41,24.1606]
[1641249944302,10.3943,170.51,170.41,24.6606]
[1641249944503,10.8943,170.51,170.41,24.6606]
[1641249946809,2.092,170.51,170.41,33.4622]
[1641249947009,0.76,170.51,170.41,33.4622]
[1641249947208,0.26,170.51,170.41,33.4622]
[1641249947412,35.30806466,170.53,170.41,33.4622]
[1641249947612,33.7747,170.53,170.41,33.4622]
[1641249947809,33.7747,170.53,170.41,33.7222]
[1641249948611,8.8015,170.52,170.41,33.7222]
[1641249949012,9.0615,170.52,170.41,33.7222]
[1641249951314,9.5615,170.52,170.41,33.7222]
[1641249951517,9.0615,170.52,170.41,33.7222]
[1641249951932,9.5615,170.52,170.41,33.7222]
[1641249952132,9.0615,170.52,170.41,33.7222]
[1641249952734,9.5615,170.52,170.41,33.7222]
[1641249952934,9.0615,170.52,170.41,33.7222]
[1641249955236,9.5615,170.52,170.41,33.7222]
[1641249955438,9.0615,170.52,170.41,33.7222]
[1641249956638,9.8925,170.52,170.41,33.7222]
[1641249956839,8.8018,170.51,170.41,33.7222]
[1641249957039,9.0618,170.51,170.41,33.7222]
[1641249957639,0.26,170.51,170.41,33.7222]
[1641249958039,1.331,170.52,170.41,33.7222]
[1641249958238,1.53336466,170.53,170.41,33.7222]
[1641249958840,110.35496466,170.56,170.41,33.7222]
[1641249959041,110.35496466,170.56,170.43,8.799]
[1641249959446,101.79496466,170.56,170.43,9.559]
[1641249959846,101.79496466,170.56,170.44,26.1396]
[1641249960048,102.05496466,170.56,170.44,26.3996]
[1641249960247,100.5216,170.56,170.44,26.8996]
[1641249960448,100.5216,170.56,170.45,8.7984]
[1641249960849,109.3203,170.56,170.45,9.5584]
[1641249961049,109.3203,170.56,170.46,23.3455]
[1641249961451,109.3203,170.56,170.46,24.1055]
[1641249961652,85.1107,170.56,170.46,25.3473]
[1641249962551,85.1107,170.56,170.46,33.886]
[1641249962751,8.7993,170.55,170.46,33.886]
[1641249962976,9.0593,170.55,170.46,33.886]
[1641249965351,9.0593,170.55,170.46,9.2987]
[1641249967053,8.8001,170.54,170.44,31.4983]
[1641249967256,30.0979,170.55,170.44,0.5]
[1641249967454,30.0979,170.55,170.42,75.2079]
[1641249967654,29.5979,170.55,170.42,75.2079]
[1641249967853,0.26,170.55,170.42,75.2079]
[1641249968054,74.9772,170.56,170.42,75.2079]
[1641249968253,1.2339,170.55,170.42,75.2079]
[1641249968653,1.4939,170.55,170.42,74.7079]
[1641249969454,1.4939,170.55,170.43,23.1089]
[1641249969654,8.8007,170.52,170.43,31.9095]
[1641249969855,8.8007,170.52,170.43,32.4095]
[1641249970054,9.0607,170.52,170.43,32.4095]
[1641249971455,8.8013,170.51,170.43,23.6089]
[1641249971856,9.0613,170.51,170.43,23.6089]
[1641249973461,9.0613,170.51,170.43,24.943]
[1641249973658,9.0613,170.51,170.43,33.7438]
[1641249974458,9.0613,170.51,170.43,24.943]
[1641249974858,9.0613,170.51,170.43,23.6089]
[1641249976660,0.26,170.51,170.43,23.6089]
[1641249977058,9.061,170.52,170.43,23.6089]
[1641249977462,0.26,170.52,170.43,23.6089]
[1641249977866,8.8018,170.51,170.43,23.6089]
[1641249978063,9.0618,170.51,170.43,23.6089]
[1641249980465,9.0618,170.51,170.43,24.8436]
[1641249980665,0.26,170.51,170.43,24.8436]
[1641249981165,9.061,170.52,170.43,24.8436]
[1641249981967,9.061,170.52,170.43,33.6445]
[1641249982166,8.8004,170.53,170.43,33.6445]
[1641249983470,9.0604,170.53,170.43,33.6445]
[1641249985706,8.8009,170.52,170.43,33.6445]
[1641249986107,9.0609,170.52,170.43,33.6445]
[1641249988315,8.8009,170.52,170.43,33.6445]
[1641249988614,9.7939,170.55,170.43,33.6445]
[1641249988913,8.56,170.55,170.43,33.6445]
[1641249989518,9.06,170.55,170.43,33.6445]
[1641249989716,8.56,170.55,170.43,33.6445]
[1641249989917,9.32,170.55,170.43,33.6445]
[1641249990720,8.8008,170.53,170.43,33.6445]
[1641249991118,9.0608,170.53,170.43,33.6445]
[1641249991318,0.26,170.53,170.43,33.6445]
[1641249991719,8.801,170.52,170.43,24.8436]
[1641249991920,1.5334,170.54,170.43,24.8436]
[1641249992123,0.26,170.52,170.43,24.8436]
[1641249992320,0.26,170.52,170.43,23.6089]
[1641249992721,2.0334,170.54,170.43,23.6089]
[1641249992919,8.8024,170.5,170.43,23.6089]
[1641249993120,2.0334,170.54,170.43,23.6089]
[1641249993320,0.26,170.5,170.43,23.6089]
[1641249993520,2.0334,170.54,170.43,23.1089]
[1641249994622,8.8026,170.49,170.43,23.1089]
[1641249995020,9.0626,170.49,170.43,23.1089]
[1641249997556,0.26,170.49,170.41,1.3043]
[1641249997758,8.82,170.49,170.38,24.1841]
[1641249997957,9.32,170.49,170.38,24.6841]
[1641249998754,8.8044,170.46,170.38,24.6841]
[1641249998956,1.53336466,170.5,170.38,24.9441]
[1641249999759,8.56,170.51,170.39,25.2506]
[1641249999959,8.8027,170.5,170.4,8.8022]
[1641250000377,9.0627,170.5,170.4,9.3022]
[1641250001056,9.0627,170.5,170.41,24.691]
[1641250001456,9.0627,170.5,170.41,26.4784]
[1641250002757,0.26,170.5,170.41,26.4784]
[1641250002960,10.3159,170.52,170.41,26.4784]
[1641250005962,10.3159,170.52,170.41,35.2798]
[1641250006361,10.8159,170.52,170.41,35.2798]
[1641250006561,10.3159,170.52,170.41,34.7798]
[1641250006964,10.8159,170.52,170.41,34.7798]
[1641250007163,10.3159,170.52,170.41,34.7798]
[1641250007863,10.3159,170.52,170.41,35.2798]
[1641250010864,1.5141,170.52,170.41,35.2798]
[1641250017674,10.3158,170.52,170.41,35.2798]
[1641250019075,8.802,170.51,170.41,26.4784]
[1641250019475,9.062,170.51,170.41,26.4784]
[1641250021379,8.8021,170.5,170.41,26.4784]
[1641250021580,9.0621,170.5,170.41,26.4784]
[1641250021983,0.26,170.5,170.41,26.4784]
[1641250022183,2.0141,170.52,170.41,26.4784]
[1641250022382,31.3568,170.52,170.41,26.4784]
[1641250022888,31.3568,170.52,170.41,25.191]
[1641250023108,32.89016466,170.52,170.41,25.191]
[1641250023711,8.803,170.47,170.41,25.191]
[1641250024012,9.063,170.47,170.41,25.191]
[1641250034924,8.8034,170.46,170.37,8.8034]
[1641250035122,0.76,170.47,170.37,8.8034]
[1641250035323,0.26,170.46,170.37,0.5]
[1641250035623,0.26,170.47,170.37,0.5]
[1641250036021,8.8046,170.44,170.36,35.4892]
[1641250036422,9.0646,170.44,170.36,35.4892]
[1641250036722,9.0646,170.44,170.36,34.9892]
[1641250037124,8.8054,170.42,170.34,8.8049]
[1641250037322,8.8054,170.42,170.32,1.2465]
[1641250037523,9.0654,170.42,170.32,1.2465]
[1641250037923,9.5654,170.42,170.32,1.2465]
[1641250039123,9.5654,170.42,170.31,24.1124]
[1641250040834,9.5654,170.42,170.31,0.5]
[1641250041030,9.5654,170.42,170.29,25.9012]
[1641250041762,9.5654,170.42,170.3,24.341]
[1641250041958,8.809,170.36,170.3,24.341]
[1641250042358,9.069,170.36,170.3,24.341]
[1641250043763,9.569,170.36,170.3,24.341]
[1641250043962,15.06,170.36,170.28,72.8816]
[1641250044164,15.06,170.36,170.25,1.2238]
[1641250044464,15.06,170.36,170.27,0.5]
[1641250044862,15.06,170.36,170.26,1.8337]
[1641250045063,15.06,170.36,170.26,1.3337]
[1641250045264,15.06,170.36,170.26,1.8337]
[1641250046766,16.3088,170.36,170.26,1.8337]
[1641250048374,16.3088,170.36,170.21,23.8569]
[1641250048768,16.3088,170.36,170.21,24.3569]
[1641250049272,16.3088,170.36,170.22,25.8684]
[1641250049474,16.3088,170.36,170.22,26.3684]
[1641250050270,24.8688,170.36,170.22,26.3684]
[1641250050469,26.29549368,170.36,170.15,17.86853672]
[1641250050669,88.18174511,170.35,170.17,1.3357]
[1641250050875,8.8141,170.31,170.17,1.3357]
[1641250051073,15.1051,170.31,170.17,1.3357]
[1641250051269,15.6051,170.31,170.17,1.3357]
[1641250051670,1.244,170.3,170.17,26.0724]
[1641250051869,1.744,170.3,170.17,26.5724]
[1641250052069,8.8151,170.29,170.17,26.5724]
[1641250052269,8.8151,170.29,170.17,25.2367]
[1641250052470,8.56,170.28,170.17,25.2367]
[1641250052668,9.06,170.28,170.15,1.2846]
[1641250052868,9.32,170.28,170.13,73.471]
[1641250053472,1.2827,170.27,170.13,1.243]
[1641250053669,8.818,170.24,170.13,1.243]
[1641250053870,9.318,170.24,170.13,1.743]
[1641250054068,9.578,170.24,170.13,1.743]
[1641250054268,9.578,170.24,170.13,0.5]
[1641250054772,10.9067,170.24,170.1,27.0378]
[1641250055373,19.4667,170.24,170.1,27.0378]
[1641250056979,19.4667,170.24,170.1,24.4904]
[1641250058480,20.89339368,170.24,170.1,24.4904]
[1641250058777,20.89339368,170.24,170.1,0.5]
[1641250059177,20.89339368,170.24,170.07,1.8542]
[1641250059577,20.89339368,170.24,170.07,25.8433]
[1641250059776,20.89339368,170.24,170.07,25.3433]
[1641250060179,20.89339368,170.24,170.07,24.4891]
[1641250060881,20.89339368,170.24,170.07,0.5]
[1641250061379,20.89339368,170.24,170.06,75.7977]
[1641250063084,26.89922845,170.24,170.06,75.7977]
[1641250064885,26.63922845,170.24,170.06,75.7977]
[1641250065087,19.2067,170.24,170.06,75.7977]
[1641250065785,19.2067,170.24,170.07,1.3356]
[1641250065986,19.2067,170.24,170.07,25.9087]
[1641250066188,19.4667,170.24,170.07,26.4087]
[1641250066686,20.89339368,170.24,170.07,26.4087]
[1641250068413,18.39339368,170.24,170.07,26.4087]
[1641250070316,16.7067,170.24,170.07,26.4087]
[1641250070516,16.7067,170.24,170.07,34.9687]
[1641250071215,15.378,170.24,170.1,8.8171]
[1641250071419,15.378,170.24,170.1,9.3171]
[1641250071616,15.638,170.24,170.1,0.76]
[1641250072217,15.638,170.24,170.08,2.1137]
[1641250072418,15.638,170.24,170.09,23.4159]
[1641250072617,15.638,170.24,170.11,8.8166]
[1641250073019,15.638,170.24,170.11,0.76]
[1641250073418,15.638,170.24,170.11,0.26]
[1641250073620,15.638,170.24,170.09,1.7859]
[1641250073825,15.638,170.24,170.1,22.8532]
[1641250074326,15.638,170.24,170.1,23.3532]
[1641250074722,15.638,170.24,170.12,8.8162]
[1641250074920,15.638,170.24,170.13,23.2301]
[1641250075123,15.378,170.24,170.13,23.2301]
[1641250075322,6.818,170.24,170.13,29.8211]
[1641250075526,6.318,170.24,170.13,38.3811]
[1641250075728,6.318,170.24,170.14,8.815]
[1641250075922,6.318,170.24,170.14,9.315]
[1641250076121,6.318,170.24,170.15,22.8628]
[1641250076521,8.8146,170.26,170.15,23.3628]
[1641250077522,8.56,170.3,170.16,8.8138]
[1641250077723,8.8135,170.28,170.17,24.724]
[1641250077922,8.8135,170.28,170.17,25.224]
[1641250078730,8.8135,170.28,170.17,34.0374]
[1641250078923,9.0735,170.28,170.17,34.0374]
[1641250079125,8.56,170.3,170.17,25.224]
[1641250079326,8.8126,170.3,170.17,34.044]
[1641250080023,8.8126,170.3,170.18,1.2274]
[1641250080423,8.8126,170.3,170.18,1.7274]
[1641250080624,9.0726,170.3,170.2,8.8118]
[1641250080823,9.0726,170.3,170.2,9.3118]
[1641250082725,9.0726,170.3,170.2,10.5602]
[1641250082925,9.0726,170.3,170.2,1.7484]
[1641250088942,9.5726,170.3,170.2,1.2484]
[1641250089142,18.1326,170.3,170.17,23.2281]
[1641250090242,18.1326,170.3,170.17,23.7281]
[1641250090653,18.1326,170.3,170.18,23.298]
[1641250091855,18.1326,170.3,170.19,1.3276]
[1641250093457,19.66596466,170.3,170.18,23.298]
[1641250096176,21.09265834,170.3,170.18,23.298]
[1641250097280,19.66596466,170.3,170.18,23.298]
[1641250097482,19.40596466,170.3,170.18,23.298]
[1641250097679,19.40596466,170.3,170.18,23.798]
[1641250097884,19.40596466,170.3,170.18,23.298]
[1641250098681,19.40596466,170.3,170.18,24.5376]
[1641250098881,19.66596466,170.3,170.18,25.0376]
[1641250099084,21.09265834,170.3,170.18,25.0376]
[1641250099886,21.09265834,170.3,170.13,8.56]
[1641250100085,21.09265834,170.3,170.15,1.2596]
[1641250100485,21.09265834,170.3,170.15,1.7596]
[1641250100786,10.35026466,170.28,170.15,0.5]
[1641250100985,11.11026466,170.28,170.15,0.5]
[1641250101184,1.42669368,170.27,170.14,25.2523]
[1641250101388,1.92669368,170.27,170.15,1.3465]
[1641250101586,2.18669368,170.27,170.15,1.3465]
[1641250101884,2.18669368,170.27,170.15,1.8465]
[1641250102088,1.3252,170.26,170.15,1.8465]
[1641250102490,2.0852,170.26,170.15,1.8465]
[1641250102686,8.8171,170.24,170.15,1.8465]
[1641250102889,9.3171,170.24,170.15,1.3465]
[1641250103087,9.5771,170.24,170.15,1.3465]
[1641250104292,9.5771,170.24,170.14,24.7523]
[1641250104491,9.5771,170.24,170.14,25.2523]
[1641250104693,9.5771,170.24,170.14,24.7523]
[1641250104892,9.5771,170.24,170.14,25.2523]
[1641250105098,11.00379368,170.24,170.14,24.7523]
[1641250105294,12.35979368,170.24,170.14,24.7523]
[1641250105917,12.35979368,170.24,170.14,25.2523]
[1641250109019,12.35979368,170.24,170.14,0.5]
[1641250109520,12.35979368,170.24,170.11,1.8369]
[1641250109722,12.35979368,170.24,170.11,26.8153]
[1641250111824,20.91979368,170.24,170.07,23.7092]
[1641250112123,28.45579368,170.24,170.1,0.5]
[1641250112323,34.26833326,170.24,170.1,0.5]
[1641250112726,1.53336466,170.22,170.05,1.8023]
[1641250112926,8.56,170.21,170.05,1.8023]
[1641250113123,14.37253958,170.21,170.05,1.8023]
[1641250113324,16.55923326,170.21,170.05,1.8023]
[1641250113527,1.42669368,170.2,170.05,1.8023]
[1641250113724,8.56,170.19,170.05,1.8023]
[1641250114023,9.32,170.19,170.05,1.8023]
[1641250114225,10.74669368,170.19,170.05,1.8023]
[1641250114824,1.293,170.18,170.05,1.8023]
[1641250115025,10.3741,170.18,170.05,1.8023]
[1641250115328,10.8741,170.18,170.05,1.8023]
[1641250115925,10.8741,170.18,170.05,0.5]
[1641250116125,10.8741,170.18,170.05,1.7933]
[1641250116326,10.8741,170.18,170.05,1.2933]
[1641250116526,12.30079368,170.18,170.05,0.5]
[1641250117226,10.8741,170.18,170.04,33.885]
[1641250118026,10.8741,170.18,170.05,1.2438]
[1641250118426,10.8741,170.18,170.05,1.7438]
[1641250118828,12.30079368,170.18,170.05,1.7438]
[1641250119727,10.8741,170.18,170.05,1.7438]
[1641250120530,12.30079368,170.18,170.05,1.7438]
[1641250124935,18.27879368,170.18,170.05,1.7438]
[1641250125837,26.83879368,170.18,170.05,1.7438]
[1641250128041,26.83879368,170.18,170.05,0.5]
[1641250128438,26.83879368,170.18,170.04,25.0643]
[1641250130845,25.1521,170.18,170.04,25.0643]
[1641250131143,19.1741,170.18,170.04,25.0643]
[1641250131768,19.1741,170.18,170.05,1.344]
[1641250131944,19.1741,170.18,170.05,1.844]
[1641250132544,19.4341,170.18,170.05,1.844]
[1641250137052,20.86079368,170.18,170.05,1.844]
[1641250139477,20.86079368,170.18,170.05,0.5]
[1641250139879,20.86079368,170.18,170.04,25.0643]
[1641250140882,20.86079368,170.18,170.05,1.3276]
[1641250141380,20.86079368,170.18,170.05,1.8276]
[1641250142787,20.86079368,170.18,170.06,24.3973]
[1641250143182,20.86079368,170.18,170.06,24.8973]
[1641250143583,20.86079368,170.18,170.07,1.3561]
[1641250143983,20.86079368,170.18,170.07,1.8561]
[1641250144384,20.60079368,170.18,170.07,1.8561]
[1641250145784,20.86079368,170.18,170.07,1.8561]
[1641250145987,20.86079368,170.18,170.07,0.5]
[1641250146384,20.86079368,170.18,170.04,74.0729]
[1641250146385,20.86079368,170.18,170.04,74.5729]
[1641250146586,25.52879368,170.18,170.04,74.5729]
[1641250146783,25.52879368,170.18,170.05,23.6145]
[1641250146985,8.8223,170.16,170.05,24.1145]
[1641250147487,9.5823,170.16,170.05,24.1145]
[1641250148285,8.8222,170.14,170.05,25.3678]
[1641250148489,15.6042,170.14,170.05,25.3678]
[1641250148685,16.1042,170.14,170.05,25.3678]
[1641250153293,9.5822,170.14,170.05,25.3678]
[1641250153494,14.6162,170.14,170.05,25.3678]
[1641250154394,9.5822,170.14,170.05,25.3678]
[1641250179250,11.11556466,170.14,170.05,25.3678]
[1641250182752,9.5822,170.14,170.05,25.3678]
[1641250183354,11.11556466,170.14,170.05,25.3678]
[1641250195501,11.11556466,170.14,170.05,24.8678]
[1641250199693,1.53336466,170.13,170.05,24.8678]
[1641250199894,10.85666466,170.13,170.05,24.8678]
[1641250200093,11.11666466,170.13,170.05,24.8678]
[1641250201098,12.44966466,170.13,170.05,24.8678]
[1641250202503,19.79266466,170.13,170.05,24.8678]
[1641250205003,10.9163,170.13,170.05,24.8678]
[1641250214213,9.3233,170.13,170.05,24.8678]
[1641250214415,8.8233,170.13,170.05,24.8678]
[1641250215515,10.35666466,170.13,170.05,24.8678]
[1641250215714,10.85666466,170.13,170.05,24.8678]